bitfinex-derivatives/quotes_BTCF0:USTF0_20250127
["timestamp","ask_amount","ask_price","bid_price","bid_amount"]
[1738010455943,0.703571,100840.0,100830.0,0.19860122]
[1738010457025,0.003,100840.0,100830.0,0.55940122]
[1738010457630,0.34277,100840.0,100830.0,0.19860122]
[1738010458245,0.70357,100840.0,100830.0,0.00014922]
[1738010459131,0.003,100840.0,100830.0,0.55940022]
[1738010460240,0.34277,100840.0,100830.0,0.19860022]
[1738010460439,0.70357,100840.0,100830.0,0.00014922]
[1738010460939,0.75797,100840.0,100830.0,0.00014922]
[1738010461135,0.81057,100840.0,100830.0,0.00014922]
[1738010461535,0.44977,100840.0,100830.0,0.19860022]
[1738010461750,0.39717,100840.0,100830.0,0.19860022]
[1738010462429,0.39717,100840.0,100830.0,0.55940022]
[1738010462638,0.34277,100840.0,100830.0,0.55940022]
[1738010462943,0.003,100840.0,100830.0,0.55940022]
[1738010463337,0.003,100840.0,100830.0,0.70073822]
[1738010463537,0.00014922,100850.0,100830.0,0.50228722]
[1738010463741,0.00014922,100850.0,100840.0,0.716931]
[1738010464242,0.19855922,100850.0,100840.0,0.356131]
[1738010464447,0.00014922,100850.0,100840.0,0.716931]
[1738010465140,2.2e-07,100850.0,100840.0,1.158269]
[1738010465347,0.206919,100880.0,100870.0,0.198371]
[1738010465646,0.206919,100880.0,100870.0,0.559171]
[1738010465838,0.206919,100880.0,100870.0,0.254371]
[1738010466036,0.206919,100880.0,100870.0,0.615171]
[1738010466237,0.709057,100880.0,100860.0,1.50084]
[1738010466543,0.709057,100880.0,100860.0,1.69852722]
[1738010466544,0.339709,100870.0,100860.0,1.69852722]
[1738010466746,0.198371,100870.0,100860.0,1.71364895]
[1738010466949,0.87162322,100880.0,100870.0,0.198371]
[1738010467546,0.198371,100870.0,100860.0,0.00014922]
[1738010467841,0.700509,100870.0,100860.0,0.00014922]
[1738010468142,0.19841,100850.0,100840.0,0.254424]
[1738010468341,0.19841,100850.0,100840.0,0.65857886]
[1738010468530,0.19841,100850.0,100840.0,0.60257886]
[1738010468531,0.339748,100850.0,100840.0,0.60257886]
[1738010468731,0.804948,100850.0,100840.0,0.60257886]
[1738010469545,0.804948,100850.0,100840.0,0.40415486]
[1738010470651,0.66361,100850.0,100840.0,0.60258486]
[1738010470943,0.3608,100850.0,100840.0,0.60258486]
[1738010471142,0.005,100850.0,100840.0,1.15432886]
[1738010471449,0.005,100850.0,100840.0,1.06819086]
[1738010472047,0.005,100850.0,100840.0,0.664036]
[1738010472548,0.20341,100850.0,100840.0,0.21489437]
[1738010472742,0.56421,100850.0,100840.0,0.21489437]
[1738010472949,0.005,100850.0,100840.0,0.21489437]
[1738010473148,0.005,100850.0,100840.0,0.71703237]
[1738010473350,0.005,100850.0,100840.0,0.57469437]
[1738010473648,0.67758765,100860.0,100840.0,0.37626437]
[1738010473849,0.81892565,100860.0,100850.0,0.19841]
[1738010474049,0.67758765,100860.0,100850.0,0.19841]
[1738010475047,0.56734822,100860.0,100850.0,0.19941]
[1738010475448,0.19854822,100860.0,100850.0,0.19841]
[1738010475644,0.56434822,100860.0,100850.0,0.19841]
[1738010475950,0.56534822,100860.0,100850.0,0.19841]
[1738010476154,0.20454822,100860.0,100850.0,0.19841]
[1738010476343,0.00614922,100860.0,100850.0,0.55921]
[1738010476652,0.20453922,100860.0,100850.0,0.55921]
[1738010478553,0.00614922,100860.0,100850.0,0.55921]
[1738010478754,0.00614922,100860.0,100850.0,0.754748]
[1738010479055,0.00614922,100860.0,100850.0,2.307648]
[1738010479243,0.42630043,100880.0,100870.0,0.198371]
[1738010479946,0.92843843,100880.0,100870.0,0.198371]
[1738010480250,0.198387,100870.0,100860.0,0.198385]
[1738010480450,0.753925,100870.0,100860.0,0.00014922]
[1738010481947,0.563538,100870.0,100840.0,0.38742355]
[1738010482152,0.700548,100850.0,100840.0,0.38742355]
[1738010482656,0.698476,100850.0,100830.0,0.23061668]
[1738010482851,0.897706,100840.0,100830.0,0.23061668]
[1738010483051,0.897706,100840.0,100830.0,0.40370009]
[1738010483851,0.756368,100840.0,100830.0,0.40370009]
[1738010484449,0.699276,100840.0,100820.0,0.28918244]
[1738010484650,0.700586,100830.0,100820.0,0.28918244]
[1738010484844,0.700586,100830.0,100810.0,0.38282502]
[1738010484845,0.198468,100820.0,100810.0,0.38282502]
[1738010485051,0.700606,100820.0,100810.0,0.38282502]
[1738010485755,0.198487,100810.0,100800.0,0.1]
[1738010485956,0.393725,100810.0,100800.0,0.29865622]
[1738010486157,0.61330222,100830.0,100800.0,0.65191322]
[1738010486354,0.61330222,100830.0,100820.0,0.198467]
[1738010486552,0.75464022,100830.0,100810.0,0.559272]
[1738010486754,0.75464022,100830.0,100820.0,0.002]
[1738010487060,0.75464022,100830.0,100820.0,0.200467]
[1738010487262,0.75464022,100830.0,100820.0,0.198467]
[1738010487955,0.75564022,100830.0,100820.0,0.198467]
[1738010488961,0.19638722,100830.0,100820.0,0.198467]
[1738010489163,0.00114922,100830.0,100820.0,0.559267]
[1738010489359,0.00114922,100830.0,100820.0,0.700605]
[1738010489870,0.00114922,100830.0,100820.0,0.559267]
[1738010490364,0.11938865,100830.0,100820.0,0.559267]
[1738010490954,0.11938865,100830.0,100820.0,2.059267]
[1738010492165,0.11938865,100830.0,100820.0,2.200605]
[1738010492359,0.11938865,100830.0,100820.0,2.059267]
[1738010492760,0.45917365,100830.0,100820.0,0.559267]
[1738010493157,0.31783565,100830.0,100820.0,0.559267]
[1738010494554,0.19959622,100830.0,100820.0,0.559267]
[1738010495160,0.34093422,100830.0,100820.0,0.559267]
[1738010495363,0.198467,100820.0,100810.0,0.57250483]
[1738010495562,0.502138,100820.0,100800.0,0.10098922]
[1738010495770,0.339825,100810.0,100800.0,0.29865522]
[1738010495960,0.198487,100810.0,100800.0,0.29865522]
[1738010496558,0.559287,100810.0,100800.0,0.29865522]
[1738010497071,0.44903722,100830.0,100820.0,0.198467]
[1738010497368,0.19859922,100830.0,100820.0,0.198467]
[1738010497566,0.198467,100820.0,100810.0,0.358381]
[1738010497766,0.00014922,100830.0,100820.0,0.198467]
[1738010498076,0.00014922,100830.0,100820.0,0.559267]
[1738010498268,0.00014922,100830.0,100820.0,0.700605]
[1738010498570,0.00014922,100830.0,100820.0,0.559267]
[1738010499160,0.20718614,100830.0,100820.0,0.700605]
[1738010499366,0.20818614,100830.0,100820.0,0.700605]
[1738010500366,0.20718614,100830.0,100820.0,0.702605]
[1738010500665,0.20718614,100830.0,100820.0,0.561267]
[1738010500863,0.20718614,100830.0,100820.0,0.559267]
[1738010501069,0.20718614,100830.0,100820.0,0.564267]
[1738010501457,0.20718614,100830.0,100820.0,2.064267]
[1738010501662,0.20718614,100830.0,100820.0,0.707605]
[1738010501967,0.06534096,100840.0,100830.0,0.198447]
[1738010502167,0.17746288,100850.0,100830.0,2.002138]
[1738010502372,0.17746288,100850.0,100840.0,0.724227]
[1738010502568,0.17746288,100850.0,100840.0,0.363427]
[1738010502762,0.31681241,100850.0,100840.0,0.363427]
[1738010502963,0.11840541,100850.0,100840.0,0.724227]
[1738010503161,0.11840541,100850.0,100840.0,0.363427]
[1738010503375,0.11840541,100850.0,100840.0,0.724227]
[1738010503570,0.12240541,100850.0,100840.0,0.724227]
[1738010504375,0.11940541,100850.0,100840.0,0.724227]
[1738010504976,0.11940541,100850.0,100840.0,0.363427]
[1738010506762,0.001,100850.0,100840.0,0.363427]
[1738010508072,0.001,100850.0,100840.0,0.724227]
[1738010508577,0.001,100850.0,100840.0,0.363427]
[1738010508968,0.3618,100850.0,100840.0,0.363427]
[1738010509177,0.001,100850.0,100840.0,0.363427]
[1738010509772,0.001,100850.0,100840.0,0.865565]
[1738010510078,0.17746288,100880.0,100870.0,0.198367]
[1738010510270,0.17746288,100880.0,100870.0,0.559167]
[1738010510467,0.17746288,100880.0,100870.0,0.729267]
[1738010510670,0.17746288,100880.0,100870.0,0.870605]
[1738010511377,0.17746288,100880.0,100870.0,0.729267]
[1738010511580,0.56733597,100890.0,100870.0,0.5309]
[1738010511780,0.29385789,100920.0,100910.0,0.198288]
[1738010512077,0.29385789,100920.0,100910.0,0.559088]
[1738010513170,0.29785789,100920.0,100910.0,0.198288]
[1738010513372,0.85692589,100920.0,100910.0,0.198288]
[1738010513777,1.05626389,100920.0,100910.0,0.198288]
[1738010514781,0.91492589,100920.0,100910.0,0.198288]
[1738010515379,0.49612589,100920.0,100910.0,0.198288]
[1738010515587,0.004,100920.0,100910.0,0.700426]
[1738010515889,0.004,100920.0,100910.0,0.198288]
[1738010516482,0.202268,100920.0,100910.0,0.198288]
[1738010516794,0.004,100920.0,100910.0,0.198288]
[1738010517593,0.202268,100920.0,100910.0,0.198288]
[1738010519990,0.198288,100910.0,100900.0,0.57227515]
[1738010520187,0.563077,100920.0,100910.0,0.198288]
[1738010521393,0.004,100920.0,100910.0,0.559088]
[1738010521589,0.004,100920.0,100910.0,0.700426]
[1738010522590,0.05664922,100930.0,100920.0,0.198269]
[1738010522791,0.05664922,100930.0,100920.0,0.559069]
[1738010522991,0.05664922,100930.0,100920.0,0.613869]
[1738010523186,0.00014922,100930.0,100920.0,0.613869]
[1738010523494,0.00014922,100930.0,100920.0,0.755207]
[1738010523891,0.00014922,100930.0,100920.0,2.114869]
[1738010523892,0.00814922,100930.0,100920.0,2.114869]
[1738010524685,0.1157,100950.0,100940.0,0.198229]
[1738010524988,0.198174,100970.0,100960.0,0.198181]
[1738010525185,0.5277,100980.0,100960.0,0.3608]
[1738010525380,0.558955,100980.0,100970.0,0.19817]
[1738010525585,0.198139,100990.0,100980.0,0.198151]
[1738010526091,0.198151,100980.0,100970.0,0.558962]
[1738010526283,0.700289,100980.0,100970.0,0.198162]
[1738010526485,0.700289,100980.0,100970.0,0.199162]
[1738010526688,0.709289,100980.0,100970.0,1.699162]
[1738010526989,0.567951,100980.0,100970.0,1.699162]
[1738010528695,0.207151,100980.0,100970.0,1.699162]
[1738010529307,0.567951,100980.0,100970.0,1.699162]
[1738010529504,0.567951,100980.0,100970.0,0.199162]
[1738010529799,0.709289,100980.0,100970.0,0.001]
[1738010529990,0.764489,100980.0,100970.0,0.001]
[1738010531595,0.19817,100970.0,100960.0,0.00014922]
[1738010531802,0.757408,100970.0,100960.0,0.00014922]
[1738010532191,0.559238,100970.0,100930.0,0.4163]
[1738010532395,0.198229,100940.0,100930.0,0.253743]
[1738010532587,0.198229,100940.0,100930.0,0.614543]
[1738010532784,0.198215,100950.0,100940.0,0.198229]
[1738010532994,0.558999,100960.0,100950.0,0.19821]
[1738010533396,0.700337,100960.0,100950.0,0.19821]
[1738010533696,0.339537,100960.0,100950.0,0.19821]
[1738010533885,0.198199,100960.0,100950.0,0.55901]
[1738010534094,0.339537,100960.0,100950.0,0.19821]
[1738010534693,0.502138,100960.0,100940.0,0.36094922]
[1738010534899,0.339548,100950.0,100940.0,0.19837422]
[1738010535095,0.19821,100950.0,100940.0,0.55917422]
[1738010535401,0.754642,100960.0,100950.0,0.19821]
[1738010535704,0.613304,100960.0,100950.0,0.19821]
[1738010536300,0.614304,100960.0,100950.0,0.19921]
[1738010536693,0.755642,100960.0,100950.0,0.19921]
[1738010537200,0.755642,100960.0,100950.0,0.001]
[1738010538199,0.755642,100960.0,100950.0,1.501]
[1738010538897,0.614304,100960.0,100950.0,1.69921]
[1738010539297,0.253504,100960.0,100950.0,1.69921]
[1738010540203,0.755642,100960.0,100950.0,1.501]
[1738010541302,0.755642,100960.0,100950.0,1.69921]
[1738010542405,0.614304,100960.0,100950.0,1.69921]
[1738010542595,0.253504,100960.0,100950.0,1.69921]
[1738010542991,0.394842,100960.0,100950.0,1.69921]
[1738010543897,0.253504,100960.0,100950.0,1.69921]
[1738010545100,0.394842,100960.0,100950.0,1.501]
[1738010545302,0.755642,100960.0,100950.0,1.501]
[1738010547805,0.755642,100960.0,100950.0,1.69921]
[1738010548109,0.614304,100960.0,100950.0,1.69921]
[1738010548306,0.755642,100960.0,100950.0,1.69921]
[1738010550013,0.755642,100960.0,100950.0,0.001]
[1738010550305,0.394842,100960.0,100950.0,0.19921]
[1738010550511,0.001,100960.0,100950.0,2.06001]
[1738010551214,0.142338,100960.0,100950.0,2.06001]
[1738010551913,0.001,100960.0,100950.0,2.06001]
[1738010552210,0.001,100960.0,100950.0,2.11581]
[1738010552507,0.001,100960.0,100950.0,2.257148]
[1738010552707,0.00014922,100970.0,100960.0,0.19819]
[1738010553012,0.00014922,100970.0,100960.0,0.67089]
[1738010553309,0.54152621,100990.0,100960.0,0.4727]
[1738010553509,0.40018821,100990.0,100980.0,0.198151]
[1738010553903,0.198151,100980.0,100970.0,0.558953]
[1738010554210,0.339489,100980.0,100970.0,0.198153]
[1738010556009,0.700289,100980.0,100970.0,1.5]
[1738010556207,0.19817,100970.0,100960.0,0.25393322]
[1738010556508,0.756108,100970.0,100960.0,0.00014922]
[1738010556711,0.756108,100970.0,100960.0,0.00114922]
[1738010557103,0.756108,100970.0,100960.0,0.00014922]
[1738010557809,0.756108,100970.0,100960.0,0.23039925]
[1738010558314,0.0558,100970.0,100960.0,0.78938925]
[1738010558613,0.339492,100980.0,100970.0,0.19817]
[1738010559811,0.198154,100980.0,100970.0,0.19817]
[1738010560011,0.198154,100980.0,100970.0,0.19917]
[1738010560411,0.558954,100980.0,100970.0,0.19917]
[1738010560599,0.700292,100980.0,100970.0,0.001]
[1738010561407,0.71242789,100980.0,100970.0,0.001]
[1738010561604,0.71242789,100980.0,100970.0,0.19917]
[1738010561815,0.198154,100980.0,100970.0,0.19917]
[1738010563011,0.339492,100980.0,100970.0,0.001]
[1738010563205,0.198154,100980.0,100970.0,0.19917]
[1738010564805,0.198154,100980.0,100970.0,0.25417]
[1738010565004,0.700292,100980.0,100970.0,0.001]
[1738010566410,0.81887787,100980.0,100970.0,0.001]
[1738010567110,0.62072387,100980.0,100960.0,0.00014922]
[1738010567411,0.339508,100970.0,100960.0,0.00014922]
[1738010567615,0.700308,100970.0,100960.0,0.00014922]
[1738010567812,0.55897,100970.0,100960.0,0.00014922]
[1738010568009,0.19817,100970.0,100960.0,0.19833922]
[1738010568817,0.19817,100970.0,100960.0,0.55913922]
[1738010569012,0.31673987,100980.0,100970.0,0.19817]
[1738010569319,0.31673987,100980.0,100970.0,0.55897]
[1738010569512,0.31673987,100980.0,100970.0,0.25247]
[1738010569911,0.81887787,100980.0,100970.0,0.0543]
[1738010570720,0.48834221,100980.0,100970.0,0.0553]
[1738010571017,0.84914221,100980.0,100970.0,0.0553]
[1738010572621,0.84914221,100980.0,100970.0,0.001]
[1738010573324,0.65098821,100980.0,100960.0,0.00014922]
[1738010573626,0.756408,100970.0,100960.0,0.00014922]
[1738010575823,0.558238,100970.0,100940.0,0.44045853]
[1738010576022,0.700347,100950.0,100940.0,0.44045853]
[1738010576225,0.339547,100950.0,100940.0,0.44045853]
[1738010576615,0.392847,100950.0,100940.0,0.44045853]
[1738010577223,0.753647,100950.0,100940.0,0.44045853]
[1738010577619,0.756647,100950.0,100940.0,0.44045853]
[1738010578726,0.87523676,100950.0,100940.0,0.0119895]
[1738010578921,0.67702776,100950.0,100930.0,0.05724922]
[1738010579125,0.339565,100940.0,100930.0,0.25549522]
[1738010579828,0.700365,100940.0,100930.0,0.25549522]
[1738010580229,0.701365,100940.0,100930.0,0.00014922]
[1738010580623,0.754065,100940.0,100930.0,0.00014922]
[1738010581728,0.754065,100940.0,100930.0,0.19839522]
[1738010582330,0.81995476,100940.0,100930.0,0.19839522]
[1738010582624,0.11958976,100940.0,100930.0,0.55919522]
[1738010582829,0.11958976,100940.0,100930.0,0.75593322]
[1738010583031,0.32307046,100950.0,100930.0,0.61338722]
[1738010583226,0.30867726,100950.0,100940.0,0.559027]
[1738010584530,0.31067726,100950.0,100940.0,0.559027]
[1738010585825,0.002,100950.0,100940.0,0.559027]
[1738010586331,0.002,100950.0,100940.0,2.111027]
[1738010587134,0.00014922,100960.0,100950.0,0.198207]
[1738010587323,0.00014922,100960.0,100950.0,0.559007]
[1738010588524,0.00014922,100960.0,100950.0,0.700345]
[1738010588726,0.00014922,100960.0,100950.0,0.559007]
[1738010591525,0.19833722,100960.0,100950.0,0.559007]
[1738010591939,0.00014922,100960.0,100950.0,0.700345]
[1738010592730,0.00014922,100960.0,100950.0,0.559007]
[1738010593842,0.00014922,100960.0,100950.0,0.700345]
[1738010594939,0.00014922,100960.0,100950.0,0.559007]
[1738010595332,0.19833722,100960.0,100950.0,0.559007]
[1738010596029,0.33967522,100960.0,100950.0,0.198207]
[1738010596229,0.25373722,100960.0,100950.0,0.198207]
[1738010597634,0.75587522,100960.0,100950.0,0.198207]
[1738010597847,0.198207,100950.0,100940.0,0.57136572]
[1738010598135,0.753445,100950.0,100940.0,0.21056572]
[1738010598332,0.805745,100950.0,100940.0,0.21056572]
[1738010598530,0.805745,100950.0,100940.0,0.21057872]
[1738010598838,0.664407,100950.0,100940.0,0.21057872]
[1738010599446,0.664407,100950.0,100940.0,0.01235172]
[1738010599643,0.607538,100950.0,100930.0,0.00014922]
[1738010599836,0.198227,100940.0,100930.0,0.19839322]
[1738010600535,0.198227,100940.0,100930.0,0.55919322]
[1738010601137,0.339565,100940.0,100930.0,0.01196701]
[1738010601333,0.700365,100940.0,100930.0,0.01196701]
[1738010601730,0.700365,100940.0,100930.0,0.00014922]
[1738010601937,0.198246,100930.0,100920.0,0.23025003]
[1738010602151,0.198266,100920.0,100910.0,0.1523341]
[1738010602437,0.198266,100920.0,100900.0,0.20661587]
[1738010602438,0.198286,100910.0,100900.0,0.20661587]
[1738010602638,0.700424,100910.0,100900.0,0.16168925]
[1738010602940,0.198305,100900.0,100890.0,0.11735425]
[1738010603135,0.700443,100900.0,100890.0,0.11750347]
[1738010604238,0.700443,100900.0,100890.0,0.31582847]
[1738010604444,0.3608,100900.0,100890.0,0.31882847]
[1738010604641,0.700431,100910.0,100900.0,0.198305]
[1738010604642,0.141338,100910.0,100900.0,0.198305]
[1738010605040,0.198538,100910.0,100900.0,0.198305]
[1738010606547,0.17636947,100920.0,100910.0,0.198286]
[1738010606850,0.17636947,100920.0,100910.0,0.559086]
[1738010607346,0.17636947,100920.0,100910.0,2.059086]
[1738010607550,4.7e-07,100920.0,100910.0,2.059086]
[1738010607741,4.7e-07,100920.0,100910.0,2.200424]
[1738010608434,4.7e-07,100920.0,100910.0,2.201424]
[1738010608640,0.0572,100940.0,100930.0,0.198246]
[1738010608944,0.0572,100940.0,100930.0,0.559046]
[1738010609951,0.00014922,100950.0,100940.0,0.198227]
[1738010610141,0.00014922,100950.0,100940.0,0.559027]
[1738010612744,0.00014922,100950.0,100940.0,2.059027]
[1738010613046,0.809515,100970.0,100940.0,2.002138]
[1738010613047,0.0534,100970.0,100940.0,2.002138]
[1738010613349,0.141338,100980.0,100970.0,0.198168]
[1738010613555,0.141338,100980.0,100970.0,0.558968]
[1738010613946,0.449477,100990.0,100980.0,0.198148]
[1738010616450,0.449477,100990.0,100980.0,0.199148]
[1738010616653,0.251338,100990.0,100980.0,0.559948]
[1738010616855,0.11,100990.0,100980.0,0.559948]
[1738010617253,0.251338,100990.0,100980.0,0.559948]
[1738010618153,0.0556,100990.0,100980.0,0.559948]
[1738010618453,0.49981726,101000.0,100990.0,0.198128]
[1738010618658,0.49981726,101000.0,100990.0,0.558928]
[1738010619047,0.44561726,101000.0,100990.0,0.558928]
[1738010619555,0.44561726,101000.0,100990.0,2.058928]
[1738010619859,0.298112,101000.0,100990.0,2.060928]
[1738010620151,0.43945,101000.0,100990.0,2.060928]
[1738010620354,0.80025,101000.0,100990.0,1.700128]
[1738010620549,0.43945,101000.0,100990.0,1.700128]
[1738010620743,0.298112,101000.0,100990.0,1.700128]
[1738010620949,0.80025,101000.0,100990.0,0.002]
[1738010621549,0.80025,101000.0,100990.0,0.200128]
[1738010621747,0.941588,101000.0,100990.0,0.002]
[1738010621947,0.198128,100990.0,100980.0,0.00014922]
[1738010622158,0.700266,100990.0,100980.0,0.00014922]
[1738010622357,0.815266,100990.0,100980.0,0.00014922]
[1738010623363,0.815266,100990.0,100980.0,0.00114922]
[1738010623859,0.815266,100990.0,100980.0,0.19929722]
[1738010624158,0.454466,100990.0,100980.0,0.00114922]
[1738010624361,0.815266,100990.0,100980.0,0.00114922]
[1738010626963,0.313128,100990.0,100980.0,0.19929722]
[1738010627155,0.198128,100990.0,100980.0,0.56009722]
[1738010627551,0.74725049,101000.0,100990.0,0.198129]
[1738010627765,0.52778849,101000.0,100990.0,0.198129]
[1738010628765,0.52778849,101000.0,100990.0,0.558929]
[1738010628969,0.52778849,101000.0,100990.0,0.559929]
[1738010629167,0.88858849,101000.0,100990.0,1.699129]
[1738010629563,0.440454,101000.0,100990.0,1.700129]
[1738010629961,0.801254,101000.0,100990.0,1.700129]
[1738010630361,0.801254,101000.0,100990.0,0.002]
[1738010631062,0.339454,101000.0,100990.0,0.3628]
[1738010631764,0.339454,101000.0,100990.0,0.560929]
[1738010631970,0.198116,101000.0,100990.0,0.560929]
[1738010632161,0.339454,101000.0,100990.0,0.560929]
[1738010632764,0.339454,101000.0,100990.0,0.3628]
[1738010634564,0.339454,101000.0,100990.0,0.560929]
[1738010637275,0.339454,101000.0,100990.0,0.3628]
[1738010637477,0.339454,101000.0,100990.0,0.560928]
[1738010637878,0.339454,101000.0,100990.0,0.3628]
[1738010638578,0.29234546,101000.0,100990.0,0.002]
[1738010638771,0.65314546,101000.0,100990.0,0.002]
[1738010639873,0.29234546,101000.0,100990.0,0.3628]
[1738010640080,0.29234546,101000.0,100990.0,0.560928]
[1738010640774,0.37470847,101000.0,100990.0,0.560928]
[1738010640972,0.01154897,101010.0,100990.0,0.62082946]
[1738010641174,0.29230946,101020.0,101010.0,0.198089]
[1738010641373,0.29230946,101020.0,101010.0,0.558889]
[1738010641889,0.18845892,101020.0,101000.0,0.36094922]
[1738010642077,0.29231846,101010.0,101000.0,0.55905822]
[1738010642678,0.33939688,101010.0,101000.0,0.55905822]
[1738010643277,0.198089,101010.0,101000.0,0.55905822]
[1738010643683,0.19944721,101010.0,101000.0,0.55905822]
[1738010643885,0.34075509,101010.0,101000.0,0.56005822]
[1738010644389,0.34075509,101010.0,101000.0,0.56105822]
[1738010645189,0.34075509,101010.0,101000.0,0.36294922]
[1738010645375,0.34075509,101010.0,101000.0,0.00214922]
[1738010645376,0.70155509,101010.0,101000.0,0.00214922]
[1738010646184,0.34075509,101010.0,101000.0,0.00214922]
[1738010647287,0.70155509,101010.0,101000.0,0.00214922]
[1738010647984,0.84286297,101010.0,101000.0,1e-08]
[1738010648194,0.198168,100970.0,100960.0,0.5340111]
[1738010648488,0.558968,100970.0,100960.0,0.1386368]
[1738010648688,0.72802621,100970.0,100960.0,0.1386368]
[1738010649186,0.86933409,100970.0,100960.0,0.1386368]
[1738010649687,0.86933409,100970.0,100960.0,0.1396368]
[1738010649986,0.86933409,100970.0,100960.0,8e-07]
[1738010650583,0.87033409,100970.0,100960.0,8e-07]
[1738010652289,0.88166897,100970.0,100960.0,8e-07]
[1738010653089,0.88166897,100970.0,100960.0,0.3608008]
[1738010653090,0.52086897,100970.0,100960.0,0.3608008]
[1738010654586,0.00235821,100970.0,100960.0,0.5589878]
[1738010654792,0.00235821,100970.0,100960.0,0.6640878]
[1738010654992,0.00235821,100970.0,100960.0,0.7161878]
[1738010658578,0.20052621,100970.0,100960.0,0.7161878]
[1738010658793,0.20052621,100970.0,100960.0,0.5589878]
[1738010658794,0.34183409,100970.0,100960.0,0.5589878]
[1738010659496,0.34183409,100970.0,100960.0,0.3608008]
[1738010659884,0.34183409,100970.0,100960.0,8e-07]
[1738010661294,0.34183409,100970.0,100960.0,0.3608008]
[1738010661496,0.34183409,100970.0,100960.0,0.5589878]
[1738010661794,0.20052621,100970.0,100960.0,0.5589878]
[1738010662296,0.34183409,100970.0,100960.0,0.5589878]
[1738010662597,0.34183409,100970.0,100960.0,0.3608008]
[1738010663599,0.43050704,100970.0,100960.0,0.3608008]
[1738010663998,0.28919916,100970.0,100960.0,0.5589878]
[1738010664189,0.09103116,100970.0,100960.0,0.5589878]
[1738010664502,0.09103116,100970.0,100960.0,0.70029568]
[1738010664799,0.09103116,100970.0,100960.0,0.5589878]
[1738010665394,0.28919916,100970.0,100960.0,0.5589878]
[1738010665790,0.09103116,100970.0,100960.0,0.5589878]
[1738010666595,0.09103116,100970.0,100960.0,0.70029568]
[1738010667292,0.00235821,100970.0,100960.0,0.70029568]
[1738010668199,0.08882217,100980.0,100960.0,0.94341656]
[1738010668406,0.00242217,100980.0,100970.0,0.70027588]
[1738010668704,0.00242217,100980.0,100970.0,2.20027588]
[1738010670005,0.11823061,100990.0,100980.0,0.33945588]
[1738010670303,0.11823061,100990.0,100980.0,0.80725588]
[1738010670802,0.36634461,101000.0,100990.0,0.198129]
[1738010671005,0.36634461,101000.0,100990.0,0.558929]
[1738010671202,0.16823061,101000.0,100990.0,0.558929]
[1738010671404,0.16823061,101000.0,100990.0,0.70023688]
[1738010671602,0.16823061,101000.0,100990.0,0.75503688]
[1738010672698,0.17023061,101000.0,100990.0,0.75603688]
[1738010673100,0.17023061,101000.0,100990.0,0.615729]
[1738010673298,0.36833961,101000.0,100990.0,0.560929]
[1738010673505,0.50964749,101000.0,100990.0,0.560929]
[1738010673995,0.39141688,101000.0,100990.0,0.3628]
[1738010674198,0.44371688,101000.0,100990.0,0.3628]
[1738010674407,0.44371688,101000.0,100990.0,0.002]
[1738010674995,0.250109,101000.0,100990.0,0.560928]
[1738010675700,0.39141688,101000.0,100990.0,0.560928]
[1738010677312,0.50964749,101000.0,100990.0,0.560928]
[1738010678412,0.50964749,101000.0,100990.0,0.3628]
[1738010678797,0.36833961,101000.0,100990.0,0.560928]
[1738010679296,0.50964749,101000.0,100990.0,0.560928]
[1738010680102,0.36833961,101000.0,100990.0,0.560928]
[1738010680698,0.250109,101000.0,100990.0,0.560928]
[1738010682802,0.34431239,101000.0,100990.0,0.560928]
[1738010683110,0.49214121,101000.0,100990.0,0.3628]
[1738010683609,0.49214121,101000.0,100990.0,0.36261607]
[1738010685115,0.49214121,101000.0,100990.0,0.56074407]
[1738010685304,0.49214121,101000.0,100990.0,0.36261607]
[1738010686215,0.52170698,101000.0,100990.0,0.36261607]
[1738010686919,0.52170698,101000.0,100990.0,0.56074407]
[1738010688107,0.52170698,101000.0,100990.0,2.06074407]
[1738010692913,0.61094909,101000.0,100990.0,2.06074407]
[1738010697023,0.49244389,101000.0,100990.0,2.06074407]
[1738010699522,0.2001315,101000.0,100990.0,0.65494746]
[1738010699826,0.2001315,101000.0,100990.0,0.76184746]
[1738010700019,0.2001315,101000.0,100990.0,2.26184746]
[1738010701215,0.17739459,101010.0,101000.0,0.198109]
[1738010701415,0.46053235,101020.0,101010.0,0.198089]
[1738010701614,0.55473574,101020.0,101010.0,0.558889]
[1738010701819,0.198089,101010.0,101000.0,0.3608]
[1738010702022,0.198109,101000.0,100990.0,0.66778729]
[1738010702319,0.29231239,101000.0,100990.0,0.36176529]
[1738010702524,0.29231239,101000.0,100990.0,0.55989329]
[1738010702920,0.29231239,101000.0,100990.0,0.00096529]
[1738010703329,0.29231239,101000.0,100990.0,0.00014922]
[1738010703917,0.198109,101000.0,100990.0,0.55907722]
[1738010704117,0.29231239,101000.0,100990.0,0.56007722]
[1738010704414,0.198091,101010.0,101000.0,0.198099]
[1738010704626,0.29229439,101010.0,101000.0,0.558899]
[1738010705022,0.29229439,101010.0,101000.0,0.3608]
[1738010705720,0.198109,101000.0,100990.0,0.56005922]
[1738010705923,0.29231239,101000.0,100990.0,0.56005922]
[1738010706922,0.29231239,101000.0,100990.0,0.55905922]
[1738010707219,0.09420339,101010.0,100990.0,0.36094922]
[1738010707422,0.198095,101010.0,101000.0,0.558894]
[1738010707612,0.29229839,101010.0,101000.0,0.610794]
[1738010708524,0.70258986,101020.0,101000.0,0.610794]
[1738010708722,0.64155847,101020.0,101010.0,0.558889]
[1738010708923,0.73576186,101020.0,101010.0,0.611989]
[1738010709125,0.73576186,101020.0,101010.0,0.558889]
[1738010709326,0.198089,101010.0,101000.0,0.559899]
[1738010709632,0.53768986,101020.0,101000.0,0.7226]
[1738010709830,0.73577286,101020.0,101010.0,0.558889]
[1738010710518,0.73577286,101020.0,101010.0,0.559889]
[1738010711126,0.44348647,101020.0,101010.0,0.614089]
[1738010711426,0.39886739,101030.0,101020.0,0.198069]
[1738010711629,0.251864,101030.0,101020.0,0.611669]
[1738010711829,0.34606739,101030.0,101020.0,0.611669]
[1738010712527,0.65670102,101040.0,101020.0,0.611669]
[1738010712528,0.44348647,101040.0,101020.0,0.45600339]